Cogmind - Beta 17.1 *** ADVENTURER MODE // 2026.09.13 @ 01:41:15 Player: lqndo Result: Destroyed by as-94726 with Assembled Maul Performance ------------- Evolutions (0) 0 Regions Visited (2) 400 Robots Destroyed (9) 45 Value Destroyed (172) 172 Prototype IDs (0) 0 Alien Tech Used (0) 0 Bonus (0) 0 TOTAL SCORE: 617 Bonus ------- None Cogmind --------- Core Integrity 0/250 Matter 230/300 Energy 99/100 System Corruption 0% Temperature Cool (0) Movement Core (700) Ox13 Location -10/Mines Parts ------- > --- POWER (1) -------- (None) > --- PROPULSION (2) --- (None) > --- UTILITY (2) ------ High-capacity Storage Unit > --- WEAPON (2) ------- (None) > --- INVENTORY (20) --- Ion Engine Light Ion Engine Light Treads Light Treads Aluminum Leg Aluminum Leg Heat Sink Heat Sink Heat Sink Structural Scanner Improved Terrain Scanner Targeting Computer Tractor Beam Small Laser Peak State ------------ > --- POWER ------------ Ion Engine > --- PROPULSION ------- Aluminum Leg Aluminum Leg > --- UTILITY ---------- Small Storage Unit Improved Terrain Scanner > --- WEAPON ----------- Small Laser Assault Rifle > --- INVENTORY -------- Ion Engine Light Treads Light Treads Assault Rifle [Rating: 9] Favorites ----------- Power Ion Engine Engine Ion Engine Propulsion Aluminum Leg Leg Aluminum Leg Utility Seismic Detector Device Seismic Detector Storage High-capacity Storage Unit Weapon Assault Rifle Energy Gun Small Laser Ballistic Gun Assault Rifle Build | -11 -10 -10 ------- Run | Yrd Mat Min Slots Evolved . | . . . Power . | . . . Propulsion . | . . . Utility . | . . . Weapon . | . . . Parts Attached 10 | 8 2 . Power 1 | 1 . . Engine 1 | 1 . . Core . | . . . Reactor . | . . . Propulsion 2 | 2 . . Treads . | . . . Leg 2 | 2 . . Wheel . | . . . Hover . | . . . Flight . | . . . Utility 4 | 3 1 . Device 2 | 2 . . Storage 2 | 1 1 . Processor . | . . . Hackware . | . . . Protection . | . . . Artifact . | . . . Weapon 3 | 2 1 . Energy Gun 1 | 1 . . Energy Cannon . | . . . Ballistic Gun 2 | 1 1 . Ballistic Cannon . | . . . Launcher . | . . . Special Weapon . | . . . Impact Weapon . | . . . Slashing Weapon . | . . . Piercing Weapon . | . . . Special Melee Weapon . | . . . Unidentified Prototypes . | . . . Parts Lost 6 | . . 6 Power 1 | . . 1 Propulsion 2 | . . 2 Utility 1 | . . 1 Weapon 2 | . . 2 Highest Loss Streak 6 | . . 6 To Critical Strikes . | . . . Average Backups 10 | 2 10 14 Power 1 | . 1 2 Propulsion 3 | 1 3 4 Utility 4 | . 5 7 Weapon . | . 1 1 Tool/Special . | . . . Unused Backups 12 | . . 12 Power 2 | . . 2 Propulsion 4 | . . 4 Utility 6 | . . 6 Weapon . | . . . Tool/Special . | . . . Average Slot Usage (%) 99 | . 100 98 Engine 14 | . 14 14 Leg 27 | . 28 26 Device 14 | . 14 14 Storage 14 | . 14 14 Energy Gun 10 | . 10 . Ballistic Gun 17 | . 17 28 Peak Build Rating 9 | 9 8 8 Average Rating 7 | 5 7 7 On Entrance 5 | . 7 8 Avg Prop Armor Cover (%) . | . . . Naked Turns . | . . . Heaviest Build 50 | 14 50 50 Greatest Support 20 | 20 20 20 Greatest Overweight (x) 13 | 4 2 13 Average Overweight (x) 1 | . 1 2 Largest Inventory Capacity 20 | 8 20 20 Average Capacity 17 | 7 17 20 Most Carried 14 | 6 14 14 Average Carried 10 | 2 10 14 Final Capacity 20 | 8 20 20 Final Carried 14 | 6 14 14 Class Distribution -------------------- 100% | Mutant Dominant Class ---------------- Mutant | -10/Materials Mutant | -10/Mines Resources | -11 -10 -10 ----------- Run | Yrd Mat Min Matter Collected 383 | 225 158 . Remotely . | . . . Salvage Created 357 | 105 224 28 Parts 18 | 5 13 . Haulers Intercepted 1 | . 1 . Recyclers Shooed 2 | 1 1 . Parts Field Recycled . | . . . Retrieved Matter . | . . . Parts Self-Destructed . | . . . Prevented . | . . . Parts Restored . | . . . Kills | -11 -10 -10 ------- Run | Yrd Mat Min Combat Hostiles Destroyed 6 | . 4 2 Guns 6 | . 4 2 Classes Destroyed 7 | 2 4 1 Tunneler 1 | 1 . . Hauler 1 | . 1 . Recycler 1 | 1 . . Watcher 2 | . 2 . Swarmer 1 | . 1 . Grunt 3 | . 3 . Assembled 2 | . . 2 Best Kill Streak 2 | 2 2 2 Combat Bots Only 2 | . 2 2 Max Kills in Single Turn 1 | 1 1 1 Gunslinging . | . . . Exploded . | . . . Melee . | . . . Uniques/NPCs Destroyed . | . . . Combat | -11 -10 -10 -------- Run | Yrd Mat Min Hostile Shots Fired 79 | . 18 61 Missed 19 | . 5 14 Hits 60 | . 13 47 Melee 13 | . . 13 Projectile 47 | . 13 34 Damage Taken 807 | . 129 678 Core 275 | . 30 245 Absorbed by Shields . | . . . Ignored by Resistances 227 | . 38 189 Core Remaining (%) 100 | 100 . . Volleys Fired 48 | 7 33 8 Largest 2 | 2 2 2 Hottest 60 | 60 60 40 Shots Fired 95 | 14 65 16 Gun 95 | 14 65 16 Cannon . | . . . Launcher . | . . . Special . | . . . Kinetic 61 | 7 38 16 Thermal 34 | 7 27 . Explosive . | . . . Electromagnetic . | . . . Robot Hit Streak 16 | 5 16 7 Robot Miss Streak 3 | 1 1 3 Penetration Max . | . . . Secondary Targets . | . . . Shots Hit Robots 59 | 9 41 9 Core Hits 22 | 3 14 5 Critical Kills . | . . . Critical Parts Destroyed 1 | . 1 . Critical Strikes 1 | . 1 . Destroy 1 | . 1 . Melee Attacks . | . . . Impact . | . . . Slashing . | . . . Piercing . | . . . Sneak Attacks . | . . . Combat Hostiles . | . . . Follow-up Attacks . | . . . Damage Inflicted 751 | 110 489 152 Guns 751 | 110 489 152 Cannons . | . . . Explosions . | . . . Melee . | . . . Ramming . | . . . Kinetic 488 | 67 269 152 Thermal 263 | 43 220 . Explosive . | . . . Electromagnetic . | . . . Impact . | . . . Slashing . | . . . Piercing . | . . . Highest Corruption . | . . . Average Corruption . | . . . Corruption Purged . | . . . Corruption Blocked . | . . . Overload Shots . | . . . Overflow Damage . | . . . Projectiles . | . . . Explosions . | . . . Melee . | . . . Knockbacks . | . . . Impact . | . . . Kinetic . | . . . Secondary . | . . . Self-Inflicted Damage . | . . . Shots . | . . . Rammed . | . . . Targets Rammed . | . . . Kicked . | . . . Crushed . | . . . Highest Temperature 57 | . 57 13 Average Temperature 25 | . 28 6 Received Heat Transfer 203 | . 87 116 Siege Activations . | . . . Martial Activations . | . . . Shielding Activations . | . . . Robots Disrupted . | . . . Combat Hostiles . | . . . Robots Corrupted . | . . . Combat Hostiles . | . . . Parts Fried . | . . . Impact Corruptions . | . . . Robots Melted . | . . . Combat Hostiles . | . . . Parts Melted . | . . . Heat Transferred 600 | 100 500 . Parts Sabotaged . | . . . Parts Stolen . | . . . Parts Stripped . | . . . Power Chain Reactions . | . . . Alert | -11 -10 -10 ------- Run | Yrd Mat Min Maximum Alert Level . | . . . Low Security (%) 100 | 100 100 100 Level 1 . | . . . Level 2 . | . . . Level 3 . | . . . Level 4 . | . . . Level 5 . | . . . High Security . | . . . Max Security . | . . . Peak Influence 41 | 10 41 . Initial . | . . . Average 3 | . 3 . Influence Increases 141 | 10 131 . Destroy 0b10 Robot/C 80 | . 80 . Destroy 0b10 Robot/NC 25 | 10 15 . Destroy Leader 16 | . 16 . Successful Hack 4 | . 4 . Destroy Structure 1 | . 1 . Lose Combat Pursuer 15 | . 15 . Influence Decreases 141 | 10 131 . Time Decay 141 | 10 131 . Squads Dispatched . | . . . Investigation . | . . . Extermination . | . . . Reinforcement . | . . . Assault . | . . . Garrison . | . . . Intercept . | . . . Searches Triggered . | . . . Construction Impeded . | . . . Haulers Reinforced . | . . . Active Scanning Responses . | . . . Cargo Convoy Interrupts . | . . . Stealth | -11 -10 -10 --------- Run | Yrd Mat Min Distress Signals 2 | . 2 . Communications Jammed . | . . . Distress Signals . | . . . Times Spotted 35 | . 12 23 Peak Tracking Total 17 | . 2 17 Tactical Retreats 2 | . 1 1 Traps | -11 -10 -10 ------- Run | Yrd Mat Min Traps Triggered . | . . . Indirectly . | . . . Trap Hack Attempts . | . . . Triggered . | . . . Disarmed . | . . . Reprogrammed . | . . . Reused . | . . . Traps Extracted . | . . . Installed . | . . . Triggered . | . . . Machines | -11 -10 -10 ---------- Run | Yrd Mat Min Machines Disabled . | . . . Max in Single Turn . | . . . Machines Repaired . | . . . Machines Dismantled . | . . . Machines Sabotaged . | . . . Overloaded Fab Kills . | . . . Hacking | -11 -10 -10 --------- Run | Yrd Mat Min Machines Accessed 3 | . 3 . Terminals 3 | . 3 . Fabricators . | . . . Repair Stations . | . . . Recycling Units . | . . . Scanalyzers . | . . . Garrison Access . | . . . Total Hacks 9 | . 9 . Successful 2 | . 2 . Failed 7 | . 7 . Catastrophic 1 | . 1 . Database Lockouts . | . . . Manual 9 | . 9 . Terminals 9 | . 9 . Fabricators . | . . . Repair Stations . | . . . Recycling Units . | . . . Scanalyzers . | . . . Garrison Access . | . . . Terminal Hacks . | . . . Fabricator Hacks . | . . . Repair Station Hacks . | . . . Recycling Unit Hacks . | . . . Scanalyzer . | . . . Garrison Access Hacks . | . . . Unauthorized Hacks 2 | . 2 . Terminals 2 | . 2 . Botnet 2 | . 2 . Fabricators . | . . . Repair Stations . | . . . Recycling Units . | . . . Scanalyzers . | . . . Garrison Access . | . . . Data Cores Recovered . | . . . Used . | . . . Hacking Detections 3 | . 3 . Full Trace Events . | . . . Feedback Events . | . . . Feedback Blocked . | . . . Robot Schematics Acquired . | . . . Robots Built . | . . . Authchips . | . . . Time . | . . . Total Robot Build Rating . | . . . Part Schematics Acquired . | . . . Parts Built . | . . . Authchips . | . . . Time . | . . . Total Part Build Rating . | . . . Part Studies Acquired . | . . . Parts Repaired . | . . . Time . | . . . Parts Recycled . | . . . Recycled Matter . | . . . Retrieved Matter . | . . . Retrieved Components . | . . . Parts Scanalyzed . | . . . Part Schematics Acquired . | . . . Parts Damaged . | . . . Bothacking | -11 -10 -10 ------------ Run | Yrd Mat Min Used RIF Installer . | . . . Robots Hacked . | . . . Non-combat . | . . . Combat . | . . . Robot Hacks Applied . | . . . Relay Couplers Released . | . . . Fabnet Peak Effective % . | . . . Robots Rewired . | . . . Allies Hacked . | . . . Hacks Repelled . | . . . Allies | -11 -10 -10 -------- Run | Yrd Mat Min Total Allies . | . . . Largest Group . | . . . Highest-Rated Group . | . . . Highest-Rated Ally . | . . . Total Orders . | . . . Ally Attacks . | . . . Total Damage . | . . . Kills . | . . . Allies Corrupted . | . . . Allies Melted . | . . . Intel | -11 -10 -10 ------- Run | Yrd Mat Min Active Infowar (turns) 1116 | 27 1023 66 Terrain 4 | 4 . . Seismic 1112 | 23 1023 66 Robot Analysis Total . | . . . Derelict Logs Recovered . | . . . Drone Launches . | . . . Drone Recoveries . | . . . Exploration | -11 -10 -10 ------------- Run | Yrd Mat Min Turns Passed 1205 | 112 1023 70 Spaces Moved 467 | 59 390 18 Core 13 | 12 . 1 Treads . | . . . Legs 454 | 47 390 17 Wheels . | . . . Hover . | . . . Flight . | . . . Fastest Speed 50 | 50 120 260 Average Speed 214 | 125 224 292 Slowest Speed 700 | 250 260 700 Overloaded Moves . | . . . Propulsion Burnouts . | . . . Robots Hopped . | . . . Potential Cave-ins . | . . . Cave-ins Triggered . | . . . Exploration Rate (%) 26 | 4 66 8 Regions Visited 2 Branch Regions 1 Pre-discovered Areas . | . . . Known Exits Taken . | . . . Unknown Exits Taken 2 | 1 1 . Scrap Searched . | . . . Spaces Dug . | . . . Terrain Destroyed . | . . . Melee . | . . . Projectile . | . . . AOE . | . . . Terrain Rammed . | . . . Walls Destroyed . | . . . Machines Disabled . | . . . Actions | -11 -10 -10 --------- Run | Yrd Mat Min Total 580 | 79 475 26 Wait 42 | . 42 . Move 465 | 58 389 18 Hop . | . . . Pick Up 14 | 6 8 . Fast Attach 7 | 7 . . Attach . | . . . Detach . | . . . Swap 3 | 1 2 . Drop 1 | . 1 . Fire 48 | 7 33 8 Melee . | . . . Ram . | . . . Kick . | . . . Crush . | . . . Escape Stasis . | . . . Rewire . | . . . Trap . | . . . Miscellaneous . | . . . Route ------- -11/Scrapyard -10/Materials (discovered 4 exits: [*Mat x2] / [*Min] / [*Sub]) -10/Mines (discovered 1 exit: [*Sub]) History --------- Turn | Location | Event 18 | -11/Scrapyard | Discovered new exit (range 15) 113 | -11/Scrapyard | Entered Materials 311 | -10/Materials | Build established: Mutant 538 | -10/Materials | Discovered new exit (range 5) 588 | -10/Materials | Discovered new exit (range 9) 847 | -10/Materials | Discovered new exit (range 10) 980 | -10/Materials | Discovered new exit (range 15) 1136 | -10/Materials | Entered Mines 1137 | -10/Mines | Assembled infested the area 1142 | -10/Mines | Assisted by a Guerilla fighting off Assembled 1200 | -10/Mines | Core integrity fell below 50% 1202 | -10/Mines | Discovered new exit (range 10) 1203 | -10/Mines | Core integrity fell below 20% 1206 | -10/Mines | Destroyed by as-94726 with Assembled Maul Last Messages --------------- 01143_ HV Slug penetrates Wall. 01145_ G-34 Mercenary destroyed. 01153_ T-07 Excavator is excavating. 01168_ D-53 Grenadier destroyed. 01177_ HV Slug penetrates as-99706. 01177_ as-99706 knocked back. 01177_ HV Slug penetrates as-99706. 01183_ as-83615 destroyed. 01185_ as-10143 destroyed. 01193_ as-96932 destroyed. 01195_ Knocked back. 01196_ T-07 Excavator is excavating. 01198_ Aluminum Leg destroyed. 01199_ as-74349 destroyed. 01200_ Assault Rifle destroyed. 01201_ T-07 Excavator is excavating. 01202_ EXIT=FOUND 01202_ Seismic Detector destroyed. 01204_ Ion Engine destroyed. 01205_ Aluminum Leg destroyed. Map ----- +----------------------------------------------------+ | | | | | | | | | | | | | | | | | | | | | ????????????????????????????????????? | | ????????????????????????????????????? | | ????????????????????????????????????? | | ????????????????????????????????????? | | ????????????????????????????????????? | | ??????????##????????????????????????? | | ??????????# ####????????????????????? | | ??????????#